bitfinex/quotes_BTCUSD_20220304
["timestamp","ask_amount","ask_price","bid_price","bid_amount"]
[1646412864200,0.007,40788.0,40785.0,0.28683063]
[1646412864401,0.007,40788.0,40786.0,0.32362487]
[1646412865433,0.007,40788.0,40786.0,0.39044487]
[1646412865833,0.007,40788.0,40786.0,0.32362487]
[1646412867235,0.1,40789.0,40786.0,0.32362487]
[1646412868342,0.1,40789.0,40787.0,0.06591649]
[1646412868540,0.1,40789.0,40788.0,0.368755]
[1646412868740,0.006,40793.0,40788.0,0.368755]
[1646412868741,0.006,40793.0,40788.0,0.768755]
[1646412868980,0.05,40795.0,40792.0,0.15]
[1646412869178,0.05,40795.0,40793.0,0.66817978]
[1646412869380,0.05,40795.0,40794.0,0.3]
[1646412869580,0.05,40795.0,40794.0,0.668658]
[1646412869780,0.003,40801.0,40795.0,0.31015329]
[1646412869981,0.003,40801.0,40800.0,0.15]
[1646412870183,0.003,40801.0,40800.0,0.818658]
[1646412870580,0.003,40801.0,40800.0,0.86551232]
[1646412870983,0.003,40801.0,40800.0,1.23417032]
[1646412871179,0.1,40804.0,40800.0,0.86551232]
[1646412871579,0.1,40804.0,40801.0,0.1]
[1646412871779,0.1,40804.0,40803.0,0.15]
[1646412872182,0.1,40804.0,40803.0,0.45]
[1646412873326,0.2226173,40813.0,40804.0,0.061308]
[1646412873528,0.00019558,40806.0,40805.0,0.122612]
[1646412874324,0.002,40810.0,40805.0,0.49127]
[1646412874525,0.002,40810.0,40808.0,0.27872417]
[1646412874726,0.002,40810.0,40808.0,0.5240611]
[1646412874924,0.06331201,40810.0,40808.0,0.24533693]
[1646412875124,0.06131201,40810.0,40808.0,0.24533693]
[1646412875325,0.06065883,40810.0,40808.0,0.24533693]
[1646412875725,0.06065883,40810.0,40805.0,0.122612]
[1646412875925,0.06065883,40810.0,40806.0,0.24835594]
[1646412876326,0.00019556,40811.0,40806.0,0.30966294]
[1646412876570,0.00019556,40811.0,40806.0,0.45966294]
[1646412876776,0.16130616,40813.0,40807.0,0.28415354]
[1646412876972,0.00019556,40811.0,40807.0,0.28415354]
[1646412877172,0.00019556,40811.0,40806.0,0.39835594]
[1646412877976,0.006,40812.0,40805.0,0.122612]
[1646412878177,0.00019556,40811.0,40805.0,0.122612]
[1646412878379,0.00019556,40811.0,40801.0,0.15]
[1646412878577,0.12264314,40807.0,40801.0,0.15]
[1646412879576,0.00019557,40806.0,40801.0,0.15]
[1646412879776,0.18396842,40805.0,40801.0,0.15]
[1646412880623,0.18396842,40805.0,40802.0,0.26774487]
[1646412881425,0.12264542,40805.0,40802.0,0.26774487]
[1646412881620,0.12264542,40805.0,40801.0,0.15]
[1646412881821,0.06151784,40806.0,40801.0,0.15]
[1646412882826,0.06132227,40806.0,40801.0,0.33394]
[1646412883025,0.06151784,40806.0,40801.0,0.33394]
[1646412883225,0.00019557,40806.0,40802.0,0.2467395]
[1646412883424,0.00019557,40806.0,40801.0,0.33394]
[1646412883824,0.00019557,40806.0,40802.0,0.42997]
[1646412884080,0.0613115,40808.0,40803.0,0.2746693]
[1646412884277,0.0613115,40808.0,40804.0,0.58633128]
[1646412884278,0.00019557,40806.0,40804.0,0.58633128]
[1646412884479,0.00019557,40806.0,40805.0,0.15]
[1646412884683,0.00019557,40806.0,40805.0,0.618658]
[1646412885279,0.1,40813.0,40805.0,0.618658]
[1646412885280,0.1,40813.0,40810.0,0.328149]
[1646412885480,0.1,40813.0,40811.0,0.15]
[1646412885881,0.1,40813.0,40810.0,0.389454]
[1646412886084,0.06130245,40812.0,40810.0,0.6752953]
[1646412886688,0.06130245,40812.0,40810.0,0.6139903]
[1646412887723,0.06130245,40812.0,40810.0,0.2858413]
[1646412887925,0.06130245,40812.0,40805.0,0.37261]
[1646412888124,0.06130245,40812.0,40805.0,0.27261]
[1646412888525,0.06130245,40812.0,40805.0,0.46285135]
[1646412888725,0.06130245,40812.0,40806.0,0.1]
[1646412889126,0.061316,40809.0,40805.0,0.27261]
[1646412889330,0.061316,40809.0,40805.0,0.061319]
[1646412889527,0.061316,40809.0,40802.0,0.25]
[1646412890226,0.00019557,40808.0,40802.0,0.25]
[1646412890426,0.06131855,40807.0,40802.0,0.15]
[1646412890628,0.06131855,40807.0,40800.0,0.003]
[1646412890629,0.070877,40805.0,40800.0,0.003]
[1646412890827,0.19353297,40805.0,40800.0,0.003]
[1646412891028,0.24353297,40805.0,40800.0,0.003]
[1646412891227,0.19353297,40805.0,40800.0,0.003]
[1646412892480,0.061328,40803.0,40800.0,0.003]
[1646412892682,0.070877,40802.0,40800.0,0.003]
[1646412892879,0.120877,40802.0,40800.0,0.003]
[1646412893479,0.070877,40801.0,40800.0,0.003]
[1646412893681,0.05,40802.0,40800.0,0.003]
[1646412894080,0.070877,40802.0,40800.0,0.003]
[1646412894281,0.370877,40802.0,40800.0,0.003]
[1646412894486,0.3491,40801.0,40800.0,0.003]
[1646412894681,0.419977,40801.0,40800.0,0.003]
[1646412895519,0.52795114,40801.0,40800.0,0.003]
[1646412895720,0.22795114,40801.0,40800.0,0.003]
[1646412895920,0.119977,40801.0,40800.0,0.003]
[1646412896121,0.22794849,40801.0,40800.0,0.003]
[1646412896521,0.28928149,40801.0,40800.0,0.003]
[1646412896921,0.28928149,40801.0,40800.0,0.0028943]
[1646412898321,0.89313105,40801.0,40800.0,0.0028943]
[1646412898985,0.63928149,40801.0,40800.0,0.0028943]
[1646412900586,0.68928149,40801.0,40800.0,0.0028943]
[1646412902189,0.63928149,40801.0,40800.0,0.0028943]
[1646412903825,0.33928149,40801.0,40800.0,0.0028943]
[1646412904029,0.120877,40801.0,40800.0,0.0028943]
[1646412904225,0.05,40803.0,40800.0,0.0028943]
[1646412904425,0.11132705,40804.0,40800.0,0.0028943]
[1646412904827,0.070877,40803.0,40800.0,0.0028943]
[1646412905024,0.06132705,40804.0,40800.0,0.0028943]
[1646412905224,0.00019557,40806.0,40801.0,0.368658]
[1646412905225,0.0615099,40806.0,40801.0,0.368658]
[1646412905428,0.0615099,40806.0,40800.0,0.1528943]
[1646412905626,0.06131433,40806.0,40801.0,0.368658]
[1646412905925,0.06150991,40806.0,40801.0,0.368658]
[1646412906125,0.06150991,40806.0,40804.0,0.2049011]
[1646412906776,0.06131433,40806.0,40804.0,0.2049011]
[1646412907379,0.06131433,40806.0,40804.0,0.3275261]
[1646412907680,0.00019557,40807.0,40805.0,0.668658]
[1646412907875,0.00019557,40807.0,40804.0,0.272625]
[1646412908076,0.007,40810.0,40804.0,0.572625]
[1646412908277,0.00019607,40808.0,40805.0,0.18688802]
[1646412908476,0.00019607,40808.0,40806.0,0.62752202]
[1646412908677,0.00019607,40808.0,40806.0,0.40886402]
[1646412908878,0.00019607,40808.0,40807.0,0.28718186]
[1646412909278,0.1,40813.0,40807.0,0.28718186]
[1646412909476,0.00019607,40810.0,40807.0,0.28718186]
[1646412909677,0.00019607,40810.0,40807.0,0.58718186]
[1646412909880,0.00019607,40810.0,40807.0,0.28718186]
[1646412910330,0.00019607,40810.0,40806.0,0.70758245]
[1646412910530,0.15,40813.0,40806.0,0.69012973]
[1646412910730,0.00019656,40811.0,40806.0,0.5140193]
[1646412911134,0.00019656,40811.0,40806.0,0.5640193]
[1646412911334,0.00019656,40811.0,40806.0,0.80857237]
[1646412911532,0.00019656,40811.0,40806.0,0.5640193]
[1646412911734,0.1,40813.0,40806.0,0.5640193]
[1646412911932,0.00019627,40811.0,40806.0,0.5640193]
[1646412912835,0.061312,40812.0,40806.0,0.15515528]
[1646412913037,0.07095012,40811.0,40806.0,0.05]
[1646412913982,0.19351633,40811.0,40806.0,0.05]
[1646412914180,0.1935892,40811.0,40806.0,0.05]
[1646412914583,0.1935892,40811.0,40805.0,0.061303]
[1646412914780,0.2435892,40811.0,40805.0,0.061303]
[1646412915182,0.24351633,40811.0,40805.0,0.061303]
[1646412915380,7.287e-05,40810.0,40804.0,0.122625]
[1646412915580,0.272201,40806.0,40804.0,0.122625]
[1646412915780,0.33352733,40806.0,40804.0,0.122625]
[1646412915980,0.19352733,40806.0,40804.0,0.122625]
[1646412916979,0.14,40805.0,40804.0,0.122625]
[1646412917182,0.210877,40805.0,40804.0,0.122625]
[1646412918038,0.210877,40805.0,40800.0,0.0028943]
[1646412918039,0.46182692,40805.0,40800.0,0.0028943]
[1646412918240,0.46182692,40805.0,40800.0,9.43e-05]
[1646412918241,0.370877,40804.0,40800.0,9.43e-05]
[1646412918442,0.061352,40796.0,40788.0,0.122689]
[1646412918739,0.061352,40796.0,40780.0,0.1384]
[1646412918740,0.070877,40791.0,40780.0,0.1384]
[1646412918939,0.070877,40791.0,40781.0,0.30711491]
[1646412919140,0.07080521,40791.0,40784.0,0.061349]
[1646412919341,0.07080521,40791.0,40785.0,0.122701]
[1646412919542,0.13215921,40791.0,40785.0,0.122701]
[1646412919939,0.06135109,40789.0,40785.0,0.122701]
[1646412920140,0.070796,40788.0,40785.0,0.122701]
[1646412921243,0.210796,40786.0,40785.0,0.122701]
[1646412921678,0.070796,40786.0,40785.0,0.122701]
[1646412923581,0.070796,40789.0,40785.0,0.122701]
[1646412923980,0.070796,40789.0,40785.0,0.38088693]
[1646412924180,0.070796,40789.0,40785.0,0.122701]
[1646412924381,0.070796,40789.0,40785.0,0.33775977]
[1646412924580,0.070796,40789.0,40785.0,0.122701]
[1646412924784,0.070796,40789.0,40786.0,0.061344]
[1646412924982,0.070796,40789.0,40788.0,0.23645079]
[1646412925241,0.17879929,40789.0,40788.0,0.23645079]
[1646412925542,0.24015161,40789.0,40785.0,0.122701]
[1646412925837,0.14,40786.0,40785.0,0.122701]
[1646412926037,0.070796,40786.0,40785.0,0.122701]
[1646412927135,0.210796,40786.0,40785.0,0.122701]
[1646412927537,0.070796,40786.0,40785.0,0.122701]
[1646412927737,0.12270432,40789.0,40785.0,0.122701]
[1646412927937,0.070796,40788.0,40785.0,0.122701]
[1646412928538,0.41644341,40792.0,40786.0,0.15]
[1646412928539,0.006,40792.0,40786.0,0.15]
[1646412928738,0.006,40792.0,40788.0,0.31563507]
[1646412928975,0.006,40792.0,40789.0,0.061334]
[1646412929179,0.006,40792.0,40790.0,0.42928401]
[1646412929376,0.00019512,40798.0,40790.0,0.42928401]
[1646412930274,0.00019512,40798.0,40792.0,0.272657]
[1646412930476,0.11407955,40793.0,40792.0,0.272657]
[1646412930677,0.11407675,40793.0,40792.0,0.061328]
[1646412931173,0.11407675,40793.0,40792.0,0.18399]
[1646412931174,0.11407395,40793.0,40792.0,0.18399]
[1646412931375,0.00019512,40798.0,40792.0,0.18399]
[1646412931874,0.11406835,40793.0,40792.0,0.23905419]
[1646412932076,0.00019512,40798.0,40793.0,1.768717]
[1646412932375,0.00019512,40798.0,40793.0,1.583952]
[1646412932573,0.00019512,40798.0,40797.0,0.15]
[1646412933030,0.00019512,40798.0,40797.0,0.3923651]
[1646412934030,0.00019512,40798.0,40797.0,0.7610821]
[1646412934631,0.00019512,40798.0,40797.0,0.8110821]
[1646412934830,0.00019512,40798.0,40797.0,1.11605972]
[1646412935032,0.006,40804.0,40798.0,1.52262]
[1646412935231,0.00019536,40806.0,40798.0,1.52262]
[1646412935431,0.00019536,40806.0,40805.0,0.30886074]
[1646412935834,0.161312,40812.0,40805.0,0.30886074]
[1646412936032,0.161312,40812.0,40805.0,0.52245619]
[1646412936033,0.00019534,40808.0,40805.0,0.52245619]
[1646412936240,0.00019534,40808.0,40807.0,0.518717]
[1646412936504,0.003,40810.0,40809.0,0.368717]
[1646412936703,0.003,40810.0,40809.0,0.543257]
[1646412937003,0.10178109,40822.0,40809.0,0.543257]
[1646412937004,0.101,40822.0,40812.0,0.02454]
[1646412937306,0.101,40822.0,40815.0,0.15]
[1646412937502,0.101,40822.0,40814.0,0.122571]
[1646412937702,2.39988902,40822.0,40814.0,0.122571]
[1646412937903,0.101,40822.0,40814.0,0.122571]
[1646412938302,0.12269828,40820.0,40814.0,0.122571]
[1646412938504,0.070796,40819.0,40816.0,0.1226]
[1646412938701,0.12269828,40820.0,40816.0,0.1226]
[1646412938903,0.070796,40819.0,40816.0,0.1226]
[1646412939402,0.13210296,40819.0,40816.0,0.1176]
[1646412939807,0.061305,40818.0,40816.0,0.1176]
[1646412941541,0.06153127,40819.0,40816.0,0.1176]
[1646412941742,0.06130696,40819.0,40816.0,0.1176]
[1646412941942,0.06153127,40819.0,40816.0,0.1176]
[1646412942343,0.00022431,40819.0,40816.0,0.1176]
[1646412942942,0.111298,40821.0,40816.0,0.1176]
[1646412943143,0.00022431,40820.0,40816.0,0.178899]
[1646412943846,0.070796,40819.0,40816.0,0.178899]
[1646412944089,0.070796,40820.0,40816.0,0.178899]
[1646412944289,0.07102031,40820.0,40816.0,0.178899]
[1646412944587,0.070796,40819.0,40816.0,0.178899]
[1646412944787,0.00022431,40820.0,40816.0,0.178899]
[1646412945390,0.070796,40819.0,40816.0,0.1176]
[1646412945588,0.19341513,40819.0,40816.0,0.1176]
[1646412945787,0.17261913,40819.0,40816.0,0.1176]
[1646412945987,0.05,40819.0,40817.0,0.20374101]
[1646412946191,0.00721603,40820.0,40817.0,0.20374101]
[1646412946588,0.007,40820.0,40817.0,0.20374101]
[1646412947189,0.00020124,40821.0,40817.0,0.20374101]
[1646412947490,0.070796,40820.0,40816.0,0.178897]
[1646412947931,0.00020124,40820.0,40816.0,0.178897]
[1646412948733,0.070796,40819.0,40816.0,0.178897]
[1646412949130,0.07098984,40820.0,40816.0,0.178897]
[1646412949431,0.00019384,40820.0,40816.0,0.178897]
[1646412949630,0.070796,40819.0,40816.0,0.178897]
[1646412949830,0.19340619,40819.0,40816.0,0.178897]
[1646412950036,0.19340619,40819.0,40814.0,0.245176]
[1646412950037,0.071896,40819.0,40817.0,0.053597]
[1646412950435,0.071896,40819.0,40815.0,0.172605]
[1646412950834,0.122618,40818.0,40815.0,0.172605]
[1646412951033,0.122618,40818.0,40810.0,0.122617]
[1646412951034,0.25,40816.0,40810.0,0.122617]
[1646412951244,0.25,40816.0,40800.0,0.24518]
[1646412951245,0.061322,40812.0,40800.0,0.24518]
[1646412951490,0.070796,40809.0,40804.0,0.061319]
[1646412951689,0.219896,40809.0,40804.0,0.061319]
[1646412952489,0.061319,40808.0,40804.0,0.061319]
[1646412952691,0.032115,40808.0,40804.0,0.061319]
[1646412953093,0.25,40806.0,40804.0,0.061319]
[1646412953292,0.25,40801.0,40799.0,0.061338]
[1646412953493,0.32453747,40800.0,40799.0,0.061338]
[1646412953796,0.02453747,40800.0,40791.0,0.122689]
[1646412953995,0.25,40797.0,40791.0,0.122689]
[1646412954193,0.0491,40797.0,40791.0,0.122689]
[1646412954394,0.2991,40797.0,40792.0,0.061343]
[1646412955228,0.0491,40797.0,40792.0,0.061343]
[1646412955430,0.14,40793.0,40792.0,0.061343]
[1646412955828,0.161341,40795.0,40792.0,0.061343]
[1646412956630,0.411341,40795.0,40792.0,0.061343]
[1646412957030,0.161341,40795.0,40792.0,0.061343]
[1646412958228,0.14,40793.0,40792.0,0.061343]
[1646412958628,0.161341,40795.0,40792.0,0.061343]
[1646412959584,0.14,40793.0,40792.0,0.061343]
[1646412959882,0.161341,40795.0,40792.0,0.061343]
[1646412960483,0.210441,40795.0,40791.0,0.122689]
[1646412960881,0.14,40792.0,40791.0,0.122689]
[1646412961083,0.210441,40795.0,40787.0,0.1]
[1646412961284,0.25,40794.0,40786.0,0.122695]
[1646412961488,0.210441,40795.0,40786.0,0.122695]
[1646412962084,0.31357869,40794.0,40786.0,0.122695]
[1646412962287,0.31357869,40794.0,40784.0,0.122697]
[1646412962288,0.122706,40792.0,40784.0,0.122697]
[1646412962487,0.3491,40791.0,40784.0,0.172697]
[1646412962933,0.3491,40791.0,40784.0,0.122697]
[1646412963134,0.14,40787.0,40784.0,0.122697]
[1646412963335,0.14,40785.0,40784.0,0.122697]
[1646412964636,0.14,40785.0,40781.0,0.05]
[1646412964834,0.061356,40786.0,40782.0,0.00021917]
[1646412965435,0.061356,40786.0,40782.0,0.06157217]
[1646412965835,0.061356,40786.0,40782.0,0.061353]
[1646412966035,0.061356,40786.0,40782.0,0.06156231]
[1646412966485,0.0491,40787.0,40785.0,0.30129853]
[1646412966690,0.10800329,40786.0,40785.0,0.42398453]
[1646412966884,0.10800329,40786.0,40785.0,0.30129853]
[1646412967086,0.10800329,40786.0,40785.0,0.49105581]
[1646412967485,0.10800329,40786.0,40783.0,0.06155131]
[1646412967690,0.0491,40790.0,40783.0,0.06155131]
[1646412968186,0.0186,40790.0,40783.0,0.061342]
[1646412968386,0.0186,40790.0,40788.0,0.21062488]
[1646412968587,0.008,40792.0,40788.0,0.21062488]
[1646412968786,0.008,40792.0,40788.0,0.26062488]
[1646412968989,0.008,40792.0,40788.0,0.05]
[1646412969191,0.008,40792.0,40787.0,0.32325561]
[1646412969387,0.1,40795.0,40787.0,0.32325561]
[1646412969986,0.1,40795.0,40793.0,0.29741272]
[1646412970236,0.0989396,40795.0,40794.0,0.368558]
[1646412970432,0.0989396,40795.0,40793.0,0.39741272]
[1646412970833,0.005,40801.0,40793.0,0.39741272]
[1646412971033,0.005,40801.0,40795.0,0.122666]
[1646412971231,0.005,40801.0,40796.0,0.05]
[1646412971232,0.061333,40799.0,40796.0,0.05]
[1646412971431,0.14,40797.0,40796.0,0.05]
[1646412971739,0.14,40797.0,40787.0,0.1387]
[1646412971933,0.25,40797.0,40787.0,0.2502467]
[1646412972131,0.25,40797.0,40788.0,0.00053088]
[1646412972533,0.061348,40795.0,40788.0,0.00053088]
[1646412972732,0.31286735,40793.0,40788.0,0.00053088]
[1646412972931,0.14,40789.0,40785.0,5.122694]
[1646412973132,0.1,40792.0,40785.0,5.122694]
[1646412973633,0.1,40792.0,40785.0,5.29134892]
[1646412974289,0.2491,40793.0,40785.0,5.122694]
[1646412974480,0.061351,40791.0,40785.0,5.122694]
[1646412974982,0.061351,40791.0,40787.0,0.31944692]
[1646412975180,0.061351,40791.0,40788.0,0.32123913]
[1646412975382,0.1491,40793.0,40788.0,0.32123913]
[1646412975781,0.1,40793.0,40788.0,0.32123913]
[1646412975981,0.1,40793.0,40789.0,0.19701868]
[1646412976181,0.1,40793.0,40788.0,0.32123913]
[1646412976683,0.1,40793.0,40787.0,0.061346]
[1646412976886,0.1,40793.0,40785.0,5.122694]
[1646412976887,0.0491,40792.0,40785.0,5.122694]
[1646412977082,0.0491,40792.0,40785.0,5.0]
[1646412977380,0.122701,40791.0,40785.0,5.0]
[1646412977582,0.0491,40790.0,40785.0,5.0]
[1646412977837,0.0491,40790.0,40785.0,5.23564555]
[1646412978037,0.0491,40790.0,40785.0,5.06135]
[1646412978636,0.0491,40790.0,40788.0,0.16688097]
[1646412978836,0.0491,40790.0,40786.0,0.26859044]
[1646412979137,0.0491,40790.0,40788.0,0.31757396]
[1646412979741,0.1,40793.0,40788.0,0.31757396]
[1646412979939,0.1,40793.0,40789.0,0.21292689]
[1646412980840,0.1,40793.0,40790.0,0.13186898]
[1646412981044,0.1,40793.0,40790.0,0.28186898]
[1646412981240,0.006,40796.0,40790.0,0.211337]
[1646412981498,0.1,40804.0,40795.0,0.26001607]
[1646412982292,0.1,40804.0,40800.0,0.23140081]
[1646412983294,0.1,40804.0,40797.0,0.15]
[1646412983493,0.061331,40802.0,40797.0,0.15]
[1646412984294,0.061331,40802.0,40798.0,0.23716435]
[1646412984494,0.005,40803.0,40798.0,0.23716435]
[1646412985330,0.06680981,40803.0,40795.0,0.25501607]
[1646412985527,0.06180981,40803.0,40793.0,0.15]
[1646412985728,0.00048381,40803.0,40793.0,0.15]
[1646412986729,0.31453181,40801.0,40790.0,0.15]
[1646412986933,0.422673,40800.0,40790.0,0.15]
[1646412987232,0.122673,40800.0,40789.0,0.23564028]
[1646412987429,0.122673,40800.0,40789.0,0.23478517]
[1646412987632,0.122673,40800.0,40787.0,0.1383]
[1646412987633,0.472673,40800.0,40787.0,0.1383]
[1646412987832,0.472673,40800.0,40786.0,0.00082753]
[1646412987833,0.25,40797.0,40786.0,0.00082753]
[1646412988030,0.061348,40794.0,40786.0,0.00082753]
[1646412988229,0.3491,40793.0,40786.0,0.00082753]
[1646412988630,0.3491,40793.0,40785.0,5.0]
[1646412989081,0.0491,40793.0,40785.0,5.061346]
[1646412989380,0.0491,40793.0,40785.0,5.0]
[1646412989784,0.01278354,40792.0,40785.0,5.0]
[1646412989981,0.061349,40790.0,40785.0,5.0]
[1646412990181,0.1,40790.0,40789.0,0.0617843]
[1646412990381,0.1,40790.0,40785.0,5.0]
[1646412990382,0.1,40790.0,40787.0,0.15]
[1646412990581,0.1,40790.0,40788.0,0.170407]
[1646412990782,0.1,40790.0,40789.0,0.22089521]
[1646412990982,0.1,40790.0,40789.0,0.52089521]
[1646412991380,0.1,40790.0,40789.0,0.22089521]
[1646412991981,0.1,40790.0,40789.0,0.28303591]
[1646412992183,0.1,40790.0,40789.0,0.22089521]
[1646412994430,0.1,40790.0,40789.0,0.52089521]
[1646412994730,0.1,40790.0,40789.0,0.40514765]
[1646412994933,0.006,40795.0,40790.0,0.061332]
[1646412995532,0.061334,40798.0,40793.0,0.2473756]
[1646412996330,0.061334,40798.0,40789.0,0.70651677]
[1646412996331,0.061334,40798.0,40789.0,0.40651677]
[1646412996987,0.061334,40798.0,40790.0,0.15]
[1646412997189,0.061334,40798.0,40789.0,0.55651677]
[1646412997388,0.38236157,40798.0,40789.0,0.22226433]
[1646412999892,0.061334,40798.0,40789.0,0.22226433]
[1646413000094,0.061334,40798.0,40792.0,0.00064739]
[1646413000936,0.14,40794.0,40792.0,0.00064739]
[1646413001135,0.061334,40798.0,40792.0,0.00064739]
[1646413003636,1.71292806,40797.0,40792.0,0.00064739]
[1646413003834,0.061334,40798.0,40792.0,0.00064739]
[1646413005093,0.061334,40798.0,40792.0,0.16887049]
[1646413005296,0.061334,40798.0,40792.0,0.00064739]
[1646413005692,0.061334,40798.0,40794.0,0.00071708]
[1646413006391,0.1,40799.0,40794.0,0.06204908]
[1646413006791,0.1,40799.0,40794.0,0.25943445]
[1646413007191,0.1,40799.0,40794.0,0.56809656]
[1646413007838,0.1,40799.0,40795.0,0.3]
[1646413008237,0.1,40799.0,40797.0,0.15]
[1646413008436,0.1,40799.0,40797.0,0.14993192]
[1646413009041,0.006,40805.0,40799.0,1.4]
[1646413009242,0.006,40805.0,40804.0,0.14993192]
[1646413009438,0.0011,40819.0,40804.0,0.14993192]
[1646413009439,0.00020702,40810.0,40804.0,0.47445192]
[1646413009638,0.00020702,40810.0,40806.0,0.1226]
[1646413009839,0.00020702,40810.0,40807.0,0.3]
[1646413010037,0.00020702,40810.0,40807.0,0.40108886]
[1646413010443,0.003,40814.0,40807.0,0.46238886]
[1646413010641,0.00020704,40811.0,40807.0,0.46238886]
[1646413011241,0.00020704,40811.0,40807.0,0.21123192]
[1646413011242,0.06152304,40811.0,40807.0,0.21123192]
[1646413011487,0.061316,40811.0,40807.0,0.0613]
[1646413011690,0.056316,40811.0,40804.0,0.21125492]
[1646413011884,0.05652303,40811.0,40804.0,0.21125492]
[1646413012084,0.05652303,40811.0,40804.0,0.40495033]
[1646413012297,0.05652303,40811.0,40810.0,0.2717147]
[1646413012484,0.05652303,40811.0,40804.0,0.31125492]
[1646413012687,0.05652303,40811.0,40804.0,0.26125492]
[1646413012885,0.056316,40811.0,40804.0,0.26125492]
[1646413013088,0.00020704,40810.0,40804.0,0.21125492]
[1646413013988,0.056316,40811.0,40804.0,0.48231266]
[1646413014189,0.00020704,40810.0,40804.0,0.48231266]
[1646413015237,0.056316,40811.0,40807.0,0.061322]
[1646413015438,0.00020704,40810.0,40807.0,0.061322]
[1646413016437,0.056316,40811.0,40807.0,0.061322]
[1646413016637,0.05652304,40811.0,40807.0,0.061322]
[1646413017638,0.056316,40811.0,40807.0,0.061322]
[1646413017838,0.05652304,40811.0,40807.0,0.061322]
[1646413018839,0.056316,40811.0,40807.0,0.061322]
[1646413019093,0.0565093,40811.0,40807.0,0.061322]
[1646413019894,0.161313,40814.0,40807.0,0.061322]
[1646413020094,0.061313,40814.0,40809.0,0.00130122]
[1646413020294,0.0001933,40811.0,40809.0,0.00130122]
[1646413020694,0.0001933,40811.0,40810.0,0.17367153]
[1646413020898,0.0001933,40811.0,40810.0,0.85743922]
[1646413021095,0.0001933,40811.0,40810.0,0.67360345]
[1646413021295,0.006,40817.0,40811.0,0.061301]
[1646413021494,0.0011,40819.0,40811.0,0.061301]
[1646413021894,0.0011,40819.0,40817.0,0.32325981]
[1646413022094,0.0011,40819.0,40818.0,0.28785372]
[1646413023139,0.0011,40819.0,40817.0,0.38455781]
[1646413024138,0.0011,40819.0,40817.0,0.65656817]
[1646413024339,0.0011,40819.0,40817.0,0.38455781]
[1646413024940,0.0011,40819.0,40817.0,0.061298]
[1646413025141,0.0011,40819.0,40818.0,0.00132762]
[1646413028698,0.0011,40819.0,40818.0,0.00028062]
[1646413030335,0.0011,40819.0,40818.0,0.00064208]
[1646413032033,0.1411,40819.0,40818.0,0.00064208]
[1646413032435,1.40062,40818.0,40812.0,0.122602]
[1646413032638,1.40062,40818.0,40804.0,0.18391]
[1646413032639,0.12264917,40816.0,40798.0,0.72064716]
[1646413032838,0.12264917,40816.0,40801.0,0.4482]
[1646413032839,0.18638438,40810.0,40801.0,0.4482]
[1646413033037,0.18638438,40810.0,40801.0,0.3]
[1646413033038,0.0491,40809.0,40801.0,0.3]
[1646413033236,0.0491,40809.0,40801.0,0.23762577]
[1646413033237,0.37634519,40809.0,40801.0,0.23762577]
[1646413033736,0.0491,40809.0,40799.0,0.1436]
[1646413033991,0.11043,40809.0,40799.0,0.4436]
[1646413034589,0.061335,40808.0,40799.0,0.65957509]
[1646413034790,0.16926285,40807.0,40799.0,0.1436]
[1646413034992,0.0491,40806.0,40797.0,0.28229146]
[1646413035191,0.061338,40805.0,40797.0,0.28229146]
[1646413035490,0.0491,40804.0,40797.0,0.28229146]
[1646413035690,0.0491,40804.0,40798.0,0.25692549]
[1646413036190,0.0491,40804.0,40797.0,0.28229146]
[1646413036594,0.14,40800.0,40797.0,0.28229146]
[1646413036789,0.14,40798.0,40797.0,0.28229146]
[1646413036991,0.14,40798.0,40796.0,0.061334]
[1646413037190,0.14,40797.0,40796.0,0.061334]
[1646413041891,0.14,40797.0,40796.0,9.061334]
[1646413042690,0.14,40797.0,40796.0,9.31638939]
[1646413043490,0.14,40797.0,40796.0,9.061334]
[1646413044496,0.14,40797.0,40796.0,9.29058324]
[1646413044692,0.066332,40800.0,40796.0,9.29058324]
[1646413045643,0.005,40800.0,40796.0,9.29058324]
[1646413045843,0.1,40809.0,40797.0,0.3]
[1646413046045,0.1,40809.0,40799.0,0.06132]
[1646413046046,0.1491,40809.0,40799.0,0.06132]
[1646413046243,0.0491,40809.0,40799.0,0.06132]
[1646413046443,0.003,40806.0,40799.0,0.06132]
[1646413046743,0.003,40806.0,40805.0,0.23623246]
[1646413046943,0.11472184,40806.0,40805.0,0.3175295]
[1646413047644,0.17304384,40806.0,40805.0,0.3175295]
[1646413047844,0.17304384,40806.0,40804.0,0.061322]
[1646413048046,0.14,40805.0,40804.0,0.061322]
[1646413048246,0.53029177,40805.0,40803.0,0.122641]
[1646413048445,0.53029177,40805.0,40798.0,0.122654]
[1646413048446,0.061333,40803.0,40798.0,0.122654]
[1646413048646,0.061334,40801.0,40798.0,0.122654]
[1646413048844,0.0491,40800.0,40798.0,0.122654]
[1646413051588,2.78434721,40800.0,40798.0,0.122654]
[1646413051987,0.0491,40800.0,40798.0,0.122654]
[1646413053938,0.0491,40800.0,40798.0,0.12258455]
[1646413054638,0.0491,40800.0,40798.0,0.28136689]
[1646413055237,0.0491,40800.0,40798.0,0.12258455]
[1646413057283,0.0491,40800.0,40799.0,0.05]
[1646413057483,0.15707811,40800.0,40799.0,0.05]
[1646413058088,0.0491,40800.0,40799.0,0.05]
[1646413058296,0.15707678,40800.0,40799.0,0.05]
[1646413058488,0.15707678,40800.0,40798.0,0.12258455]
[1646413058687,0.110438,40800.0,40798.0,0.12258455]
[1646413059289,0.110438,40800.0,40799.0,0.05]
[1646413059487,0.21841876,40800.0,40799.0,0.05]
[1646413060541,0.005,40804.0,40799.0,0.49993192]
[1646413060742,0.0002064,40810.0,40806.0,0.122639]